bitfinex/quotes_SOLUSD_20240811
["timestamp","ask_amount","ask_price","bid_price","bid_amount"]
[1723415752090,17.6387,141.74,141.65,12.1598]
[1723415752383,7.0572,141.7,141.65,19.2193]
[1723415752764,7.0567,141.71,141.65,19.2193]
[1723415752965,7.0562,141.72,141.67,7.0586]
[1723415753164,20.0,141.73,141.65,36.8672]
[1723415753365,38.47424177,141.75,141.65,36.8672]
[1723415753692,7.0577,141.69,141.65,12.1598]
[1723415753876,7.0555,141.74,141.68,7.0579]
[1723415754052,7.34843062,141.79,141.69,46.41097279]
[1723415754257,31.8603058,141.81,141.7,52.057]
[1723415754559,7.0542,141.76,141.7,7.057]
[1723415754757,7.0542,141.76,141.71,7.0565]
[1723415754955,7.0537,141.77,141.71,8.46725594]
[1723415755190,7.0531,141.78,141.72,30.2974]
[1723415755364,7.0531,141.78,141.73,7.0556]
[1723415755553,7.34652731,141.82,141.74,7.0551]
[1723415755889,7.0517,141.81,141.74,30.54718275]
[1723415756184,7.0523,141.8,141.74,29.7969]
[1723415756379,7.0527,141.79,141.74,29.7969]
[1723415756575,7.0527,141.79,141.74,36.852]
[1723415756775,7.34652731,141.82,141.75,46.32062151]
[1723415757084,17.6257,141.84,141.75,46.32062151]
[1723415757285,20.0,141.83,141.75,46.32062151]
[1723415757489,35.2468,141.86,141.75,1.32062151]
[1723415757490,7.0529,141.79,141.75,1.32062151]
[1723415757657,42.59111819,141.86,141.74,12.1598]
[1723415757980,42.59111819,141.86,141.74,20.62532552]
[1723415757981,7.0527,141.79,141.74,20.62532552]
[1723415758691,7.34431819,141.86,141.75,0.12549]
[1723415758901,17.622,141.87,141.77,17.6332]
[1723415759186,7.0522,141.8,141.75,45.0]
[1723415760292,7.0517,141.81,141.75,52.0546]
[1723415760465,0.83674177,141.84,141.75,45.0]
[1723415760666,20.83674177,141.84,141.74,29.7973]
[1723415760979,18.00387,141.83,141.74,12.1598]
[1723415761195,20.83674177,141.82,141.74,12.1598]
[1723415761395,7.0542,141.76,141.74,12.1598]
[1723415761559,20.83674177,141.82,141.74,20.62549863]
[1723415761560,20.0,141.82,141.74,20.62549863]
[1723415761759,20.0,141.82,141.64,37.64677594]
[1723415761760,17.6354,141.76,141.69,13.1069]
[1723415762185,20.0,141.75,141.69,13.1069]
[1723415762593,7.0571,141.7,141.69,13.1069]
[1723415762756,37.637,141.75,141.68,31.8686]
[1723415762960,7.0571,141.7,141.68,31.8686]
[1723415763188,37.637,141.75,141.65,12.4073]
[1723415763189,17.6403,141.73,141.65,12.4073]
[1723415763393,17.6403,141.73,141.63,32.1444]
[1723415763394,7.0591,141.66,141.63,32.1444]
[1723415763687,7.0595,141.66,141.61,12.1566]
[1723415763891,17.6431,141.7,141.61,12.1566]
[1723415763892,7.0586,141.68,141.61,20.6299531]
[1723415764085,7.0596,141.65,141.61,12.1566]
[1723415764263,7.0591,141.66,141.61,12.1566]
[1723415765296,0.12549,141.73,141.61,13.56842349]
[1723415765460,20.50196,141.73,141.61,13.56842349]
[1723415765663,20.0,141.73,141.63,7.0606]
[1723415766387,20.0,141.73,141.62,17.6527]
[1723415766558,20.83674177,141.73,141.61,47.2066]
[1723415766764,7.0587,141.67,141.62,45.0]
[1723415766986,20.0,141.73,141.61,12.1566]
[1723415766987,7.0596,141.65,141.61,12.1566]
[1723415767170,7.0609,141.63,141.61,12.1566]
[1723415767490,17.6457,141.68,141.61,12.1566]
[1723415767491,7.0601,141.65,141.61,12.1566]
[1723415767667,7.0603,141.64,141.61,12.1566]
[1723415768068,7.0596,141.65,141.61,12.1566]
[1723415768485,17.76699,141.72,141.61,12.1566]
[1723415768684,20.0,141.71,141.61,12.1566]
[1723415768899,17.6452,141.69,141.61,12.1566]
[1723415769185,20.83674177,141.68,141.61,12.1566]
[1723415769389,7.0601,141.64,141.61,12.1566]
[1723415769571,20.0,141.68,141.61,12.1566]
[1723415769769,7.0591,141.67,141.61,36.8715]
[1723415769987,20.0,141.68,141.61,29.81]
[1723415770290,20.0,141.71,141.61,29.81]
[1723415770488,20.0,141.71,141.61,12.1566]
[1723415770665,7.0596,141.65,141.61,12.1566]
[1723415771662,7.0602,141.64,141.61,12.1566]
[1723415771873,7.0597,141.65,141.61,12.1566]
[1723415772065,7.0591,141.67,141.61,12.1566]
[1723415772263,7.0575,141.7,141.64,7.0601]
[1723415772470,20.0,141.79,141.64,7.0601]
[1723415772471,7.0561,141.72,141.67,7.0586]
[1723415772687,7.0561,141.72,141.68,0.49446706]
[1723415772903,17.6366,141.76,141.64,24.7098]
[1723415773073,17.6366,141.76,141.66,7.0591]
[1723415773074,7.0562,141.72,141.66,7.0591]
[1723415773276,7.0562,141.72,141.65,1.41134973]
[1723415773277,17.6366,141.76,141.67,32.78055048]
[1723415773484,14.2303058,141.77,141.67,31.3694]
[1723415773879,31.8646058,141.77,141.68,1.41120986]
[1723415774081,7.0564,141.72,141.68,1.41120986]
[1723415774391,31.8646058,141.77,141.68,8.4693184]
[1723415774392,7.0552,141.74,141.68,8.4693184]
[1723415774788,7.0559,141.73,141.68,1.4112184]
[1723415775099,7.0567,141.71,141.67,31.3694]
[1723415775815,14.2303058,141.77,141.68,53.4684819]
[1723415776015,20.0,141.76,141.68,53.4684819]
[1723415776304,20.0,141.76,141.68,1.41105949]
[1723415776475,7.0556,141.74,141.68,1.41105949]
[1723415776671,20.0,141.76,141.68,64.05535949]
[1723415776877,20.0,141.76,141.7,19.5021]
[1723415776878,7.0546,141.75,141.7,19.5021]
[1723415777090,7.0553,141.74,141.71,1.41089704]
[1723415777317,20.0,141.76,141.7,12.4452]
[1723415777480,7.0557,141.73,141.7,12.4452]
[1723415777991,7.0561,141.72,141.7,12.4452]
[1723415778497,17.6367,141.75,141.67,31.3694]
[1723415778680,7.0579,141.69,141.67,31.3694]
[1723415778886,7.0562,141.72,141.67,31.3694]
[1723415779087,20.0,141.74,141.67,31.3694]
[1723415779310,20.0,141.74,141.61,35.05]
[1723415779311,18.60233177,141.73,141.62,31.033]
[1723415779607,7.0577,141.69,141.63,7.0605]
[1723415779789,7.0582,141.68,141.64,1.41161911]
[1723415779992,7.0588,141.67,141.62,72.691]
[1723415780185,7.0581,141.68,141.62,72.691]
[1723415780508,1.2273396,141.76,141.66,29.35]
[1723415780712,17.6353,141.77,141.68,29.35]
[1723415781023,17.6353,141.77,141.65,17.6481]
[1723415781024,29.35,141.73,141.62,43.341]
[1723415781181,7.0586,141.68,141.62,43.341]
[1723415781382,0.83674177,141.7,141.62,43.341]
[1723415781608,7.0575,141.7,141.64,29.35]
[1723415781786,29.35,141.77,141.66,29.35]
[1723415782006,7.0563,141.72,141.67,0.82665863]
[1723415782184,29.35,141.77,141.66,29.35]
[1723415782382,7.0562,141.72,141.66,29.35]
[1723415782989,7.0562,141.72,141.67,45.0]
[1723415783318,7.0562,141.72,141.65,0.12549]
[1723415783319,29.35,141.75,141.64,29.35]
[1723415783608,29.35,141.75,141.62,43.341]
[1723415783609,29.35,141.71,141.62,43.341]
[1723415783815,20.83674177,141.7,141.62,43.341]
[1723415783990,20.0,141.7,141.62,43.341]
[1723415784193,20.0,141.7,141.62,72.691]
[1723415784194,7.0585,141.68,141.62,72.691]
[1723415784567,20.0,141.7,141.65,7.0591]
[1723415784723,20.0,141.71,141.66,29.77438323]
[1723415785401,27.0566,141.71,141.67,1.41135455]
[1723415785784,17.6358,141.76,141.67,1.41135455]
[1723415785994,17.6314,141.8,141.7,29.35]
[1723415786189,29.35,141.79,141.7,29.35]
[1723415786488,82.2528,141.77,141.67,45.0]
[1723415786693,7.0546,141.76,141.68,36.408]
[1723415786894,7.0546,141.76,141.7,29.35]
[1723415787095,7.0546,141.75,141.71,1.41070767]
[1723415787416,7.0541,141.76,141.71,1.41070767]
[1723415787714,7.0521,141.81,141.74,29.35]
[1723415787931,7.0537,141.77,141.72,72.691]
[1723415788226,14.2303058,141.84,141.73,1.53311584]
[1723415788227,43.5803058,141.84,141.73,1.53311584]
[1723415788431,43.5803058,141.84,141.74,29.35]
[1723415788636,43.5803058,141.84,141.74,30.75836214]
[1723415788802,43.5803058,141.84,141.73,52.18109]
[1723415788803,29.35,141.82,141.72,72.691]
[1723415789000,14.2303058,141.84,141.72,72.691]
[1723415789001,46.9807,141.8,141.72,43.341]
[1723415789429,46.9807,141.8,141.73,0.40457311]
[1723415789633,46.9807,141.8,141.72,43.341]
[1723415789634,7.0541,141.76,141.72,43.341]
[1723415789837,20.0,141.79,141.73,0.12549]
[1723415790007,31.8568058,141.84,141.73,45.0]
[1723415790330,67.85354757,141.84,141.72,43.341]
[1723415790526,7.0546,141.75,141.72,43.341]
[1723415791104,7.0521,141.81,141.73,0.12549]
[1723415791303,14.2303058,141.84,141.73,45.12549]
[1723415791537,14.2303058,141.84,141.72,43.341]
[1723415792004,7.0537,141.77,141.72,43.341]
[1723415792429,17.6282,141.82,141.72,43.341]
[1723415792634,0.12549,141.8,141.72,43.341]
[1723415793132,20.0,141.81,141.72,43.341]
[1723415793311,7.0529,141.79,141.72,50.3971]
[1723415793708,14.2303058,141.84,141.76,7.054]
[1723415794032,14.2303058,141.84,141.77,1.40729645]
[1723415794935,7.0497,141.85,141.78,7.17859]
[1723415795129,7.0497,141.85,141.79,46.40709794]
[1723415795434,20.06120301,141.91,141.81,42.2915]
[1723415795602,27.14424318,141.92,141.81,42.2915]
[1723415795909,7.34116407,141.91,141.81,42.2915]
[1723415796101,7.0497,141.85,141.81,42.2915]
[1723415796305,7.0497,141.85,141.82,1.33884847]
[1723415796551,7.0492,141.87,141.83,1.40992516]
[1723415797036,7.048,141.89,141.83,1.40992516]
[1723415797248,42.4998068,141.93,141.82,45.0]
[1723415797525,7.0476,141.9,141.82,52.0507]
[1723415797706,60.17744519,141.95,141.82,45.0]
[1723415797904,55.16,141.93,141.81,42.2915]
[1723415798135,35.16,141.9,141.81,42.2915]
[1723415798920,7.0497,141.85,141.81,42.2915]
[1723415800411,7.0492,141.86,141.81,42.2915]
[1723415800942,7.0497,141.85,141.81,42.2915]
[1723415801127,7.0507,141.83,141.81,42.2915]
[1723415801329,0.83674177,141.88,141.81,42.2915]
[1723415801330,17.6194,141.89,141.81,42.2915]
[1723415801639,20.0,141.88,141.81,42.2915]
[1723415801840,7.0503,141.84,141.81,42.2915]
[1723415802625,7.0507,141.83,141.81,42.2915]
[1723415802833,7.0511,141.82,141.81,42.2915]
[1723415803033,7.0523,141.8,141.76,43.6391]
[1723415803214,0.12549,141.86,141.76,43.6391]
[1723415803434,20.25098,141.86,141.77,1.41038108]
[1723415803638,7.0511,141.83,141.77,8.46398108]
[1723415803862,7.0517,141.81,141.76,43.6391]
[1723415805135,7.0517,141.81,141.77,1.41033755]
[1723415805435,7.0526,141.8,141.76,43.6391]
[1723415805629,17.6281,141.82,141.76,43.6391]
[1723415805830,7.0548,141.75,141.72,42.5859]
[1723415806054,17.6316,141.8,141.72,42.5859]
[1723415806253,7.0547,141.75,141.72,42.5859]
[1723415806456,20.0,141.79,141.72,42.5859]
[1723415806762,7.0546,141.76,141.72,42.5859]
[1723415807076,7.0532,141.78,141.73,1.31900577]
[1723415807240,7.0532,141.78,141.74,1.34864012]
[1723415807432,27.0527,141.79,141.74,1.34864012]
[1723415807649,7.0527,141.79,141.74,1.34864012]
[1723415807849,7.0527,141.79,141.74,8.40364012]
[1723415808148,7.0527,141.79,141.74,1.34864012]
[1723415808329,295.8448,141.87,141.72,67.2817]
[1723415808330,7.0512,141.82,141.76,7.054]
[1723415808533,17.623,141.86,141.77,1.41040285]
[1723415808534,7.0517,141.81,141.77,1.41040285]
[1723415808732,7.0517,141.81,141.75,17.6365]
[1723415808950,77.7471837,141.87,141.76,1.41036482]
[1723415809231,7.0526,141.79,141.72,60.2261]
[1723415809588,7.0526,141.8,141.74,7.0551]
[1723415809855,36.6323837,141.87,141.76,29.29]
[1723415810166,7.0507,141.83,141.77,7.0535]
[1723415810657,7.0502,141.84,141.79,7.0525]
[1723415810868,7.0497,141.85,141.79,7.0525]
[1723415811057,7.0503,141.84,141.78,36.3431]
[1723415811563,7.0509,141.83,141.78,36.3431]
[1723415811762,7.0509,141.83,141.78,29.29]
[1723415811935,7.0491,141.87,141.81,7.0515]
[1723415812146,7.0491,141.87,141.79,45.1019]
[1723415812147,260.6,141.92,141.85,7.0496]
[1723415812364,29.29,141.94,141.82,30.01713763]
[1723415812365,7.0472,141.9,141.86,0.7271557]
[1723415812768,29.29,141.94,141.8,0.12549]
[1723415812769,46.9063,141.92,141.8,29.29]
[1723415813073,7.0492,141.86,141.8,36.342]
[1723415813358,7.0492,141.86,141.81,1.4096951]
[1723415813937,7.0492,141.86,141.82,1.40939689]
[1723415814136,7.0492,141.86,141.8,36.342]
[1723415815141,7.0497,141.85,141.79,52.1545]
[1723415815564,7.0492,141.86,141.8,8.461925]
[1723415816368,7.0493,141.86,141.81,1.40984057]
[1723415816570,7.0493,141.86,141.81,8.46144057]
[1723415816772,7.05,141.85,141.79,45.1019]
[1723415816957,7.0487,141.87,141.8,46.9195]
[1723415817261,29.29,141.9,141.8,46.9195]
[1723415817457,20.0,141.89,141.8,46.9195]
[1723415818055,7.0506,141.84,141.79,45.1019]
[1723415818268,29.29,141.86,141.79,45.1019]
[1723415818662,7.0507,141.83,141.79,45.1019]
[1723415818973,7.0513,141.82,141.79,45.1019]
[1723415819967,37.74569,141.89,141.79,45.1019]
[1723415819968,37.6202,141.89,141.8,1.41027368]
[1723415820149,7.0486,141.88,141.82,7.051]
[1723415820550,7.0486,141.88,141.83,8.46041507]
[1723415820751,29.29,141.93,141.84,7.05]
[1723415820969,7.0478,141.89,141.83,24.6762]
[1723415821185,7.0468,141.91,141.84,30.69963871]
[1723415821483,7.0473,141.9,141.85,7.0496]
[1723415821977,7.0463,141.92,141.86,30.69909251]
[1723415822487,7.0463,141.92,141.86,36.3391]
[1723415822790,7.0456,141.94,141.88,20.0734]
[1723415822984,44.16861229,141.97,141.89,1.40926928]
[1723415822985,7.0459,141.93,141.89,1.40926928]
[1723415823188,7.0459,141.93,141.9,1.40927402]
[1723415823354,44.16861229,141.97,141.9,1.40927402]
[1723415823558,36.4341671,142.01,141.9,1.40927402]
[1723415823559,64.4988,142.01,141.9,30.69927402]
[1723415823760,7.0463,141.92,141.88,13.0254]
[1723415823967,7.0456,141.94,141.88,20.0733]
[1723415824271,7.0458,141.93,141.88,20.0733]
[1723415824491,29.29,141.97,141.89,1.40929292]
[1723415824779,6.5452,141.94,141.9,1.40915096]
[1723415824982,7.0457,141.93,141.9,1.40915096]
[1723415825277,7.0457,141.93,141.88,20.0734]
[1723415825278,29.29,141.97,141.88,13.0254]
[1723415825491,7.0463,141.92,141.88,13.0254]
[1723415826082,7.0477,141.89,141.88,13.0254]
[1723415826287,7.0477,141.89,141.87,32.0771]
[1723415826965,7.0458,141.93,141.87,39.1253]
[1723415827183,29.29,141.95,141.87,39.1253]
[1723415827184,14.2303058,142.01,141.92,29.29]
[1723415827363,29.29,142.03,141.95,7.0442]
[1723415827566,7.0423,142.0,141.94,24.6573]
[1723415827958,7.0418,142.01,141.94,46.9022]
[1723415828163,7.0418,142.01,141.95,1.40859228]
[1723415828397,7.041,142.03,141.97,7.0437]
[1723415828558,278.1985,142.06,141.96,78.5985]
[1723415828755,17.5985,142.06,141.97,45.0]
[1723415828956,14.25457535,142.08,141.98,43.44904062]
[1723415829156,7.0394,142.06,142.0,36.45759]
[1723415829374,46.8847,142.09,142.0,36.45759]
[1723415829375,4.2577,142.12,142.03,12.7508]
[1723415829633,14.49040042,142.33,142.24,7.0298]
[1723415829801,13.52227533,142.35,142.29,29.29]
[1723415830100,3.56560409,142.52,142.14,44.4497]
[1723415830101,20.0,142.43,142.27,52.4615]
[1723415830267,32.7427,142.44,142.31,17.5672]
[1723415830460,20.0,142.4,142.25,7.0294]
[1723415830660,7.0274,142.3,142.25,34.89]
[1723415830961,20.0,142.38,142.25,34.89]
[1723415830962,18.39744177,142.37,142.25,34.89]
[1723415831168,18.39744177,142.37,142.22,17.5773]
[1723415831169,7.0275,142.3,142.23,7.0307]
[1723415831374,7.0267,142.32,142.25,7.0298]
[1723415831589,7.0267,142.32,142.25,41.9198]
[1723415831902,7.0261,142.33,142.25,52.4636]
[1723415832073,7.0274,142.3,142.22,34.89]
[1723415832270,7.0268,142.32,142.23,45.0]
[1723415832592,7.0284,142.28,142.22,34.89]
[1723415832763,7.0277,142.3,142.22,41.9212]
[1723415832958,17.5632,142.35,142.23,0.12549]
[1723415833198,7.0261,142.33,142.24,17.70029]
[1723415833368,107.5638,142.39,142.26,7.0292]
[1723415833569,107.5638,142.39,142.25,34.89]
[1723415833775,7.0265,142.32,142.25,34.89]
[1723415834079,107.5638,142.39,142.25,34.89]
[1723415834080,7.025,142.35,142.25,34.89]
[1723415834272,7.025,142.35,142.25,36.29495953]
[1723415834673,37.5574,142.39,142.25,34.89]
[1723415834998,37.5574,142.39,142.25,41.9196]
[1723415834999,17.5574,142.39,142.25,41.9196]
[1723415835302,17.5574,142.39,142.25,36.29542512]
[1723415835504,17.5574,142.39,142.25,34.89]
[1723415835505,37.5574,142.39,142.25,34.89]
[1723415835667,20.0,142.37,142.25,34.89]
[1723415836000,7.0269,142.31,142.25,34.89]
[1723415836197,20.0,142.3,142.22,34.89]
[1723415836370,20.0,142.3,142.26,7.0293]
[1723415836891,20.0,142.3,142.24,24.606]
[1723415837118,7.0268,142.32,142.24,24.606]
[1723415837119,20.0,142.31,142.25,8.42897103]
[1723415837271,20.0,142.31,142.25,7.0298]
[1723415837471,27.0269,142.31,142.24,17.5758]
[1723415837696,7.0279,142.29,142.24,1.39907268]
[1723415837912,7.0274,142.3,142.23,7.0308]
[1723415838068,27.028,142.29,142.24,1.40580034]
[1723415838401,7.0274,142.3,142.24,1.40579836]
[1723415838693,20.0,142.29,142.24,1.40579836]
[1723415838901,20.0,142.29,142.23,7.0308]
[1723415838902,27.0283,142.29,142.21,7.0313]
[1723415839072,27.0283,142.29,142.22,7.0311]
[1723415839274,27.0283,142.29,142.22,8.43684147]
[1723415839585,27.0283,142.29,142.2,17.58]
[1723415839586,7.0289,142.27,142.21,7.0317]
[1723415839975,7.0289,142.27,142.2,17.58]
[1723415839976,20.0,142.29,142.2,17.58]
[1723415840215,7.0274,142.3,142.23,17.5769]
[1723415840372,34.89,142.38,142.23,17.5769]
[1723415840373,7.0264,142.32,142.25,34.89]
[1723415840700,7.0248,142.36,142.28,34.89]
[1723415841117,7.0248,142.36,142.3,7.0272]
[1723415841280,278.1547,142.42,142.31,52.0268]
[1723415841281,7.0241,142.37,142.31,52.0268]
[1723415841617,17.5547,142.42,142.33,7.0259]
[1723415841916,7.0235,142.38,142.33,1.40130918]
[1723415842215,7.023,142.39,142.33,1.40130918]
[1723415842513,7.0229,142.39,142.33,45.0]
[1723415842717,7.0243,142.37,142.31,41.9169]
[1723415842924,20.0,142.42,142.29,17.5696]
[1723415843089,7.0254,142.35,142.3,45.0]
[1723415843422,7.0249,142.35,142.3,7.0273]
[1723415843722,52.78489,142.43,142.31,18.96743771]
[1723415843885,52.78489,142.43,142.31,52.456]
[1723415843886,20.50196,142.42,142.31,52.456]
[1723415844205,0.12549,142.4,142.31,52.456]
[1723415844404,7.0245,142.36,142.31,34.89]
[1723415844589,0.50196,142.4,142.32,1.40503516]
[1723415844590,7.024,142.37,142.32,1.40503516]
[1723415844777,7.024,142.37,142.33,1.40503589]
[1723415844982,20.0,142.44,142.33,1.40503589]
[1723415844983,7.0233,142.39,142.33,1.40503589]
[1723415845183,20.0,142.38,142.33,1.40503589]
[1723415845609,20.0,142.38,142.33,8.43043589]
[1723415845990,52.4406,142.45,142.33,8.43043589]
[1723415845991,7.0225,142.4,142.34,41.9153]
[1723415846185,17.5506,142.45,142.35,1.40470781]
[1723415846386,7.022,142.41,142.36,8.42888418]
[1723415846591,7.022,142.41,142.34,52.57799]
[1723415846829,7.022,142.41,142.35,45.12549]
[1723415847311,7.022,142.41,142.36,1.40213014]
[1723415847692,17.5506,142.45,142.37,7.0239]
[1723415847693,7.0215,142.42,142.37,7.0239]
[1723415847893,7.0215,142.42,142.38,1.40239297]
[1723415848120,17.5506,142.45,142.35,45.12549]
[1723415848121,7.0221,142.41,142.35,45.12549]
[1723415848324,17.5506,142.45,142.35,45.12549]
[1723415848325,7.0214,142.42,142.36,1.40400236]
[1723415848495,17.5465,142.48,142.37,52.57459]
[1723415848696,7.0209,142.43,142.38,53.42690514]
[1723415848891,17.5465,142.48,142.37,59.473]
[1723415849112,49.74465852,142.55,142.31,34.89]
[1723415849113,7.019,142.47,142.41,0.12549]
[1723415849420,17.5428,142.51,142.41,0.12549]
[1723415849421,7.0185,142.48,142.41,45.12549]
[1723415849640,37.27335962,142.56,142.41,45.12549]
[1723415849641,20.0,142.6,142.47,34.89]
[1723415849922,20.0,142.61,142.48,45.0]
[1723415850292,7.0146,142.56,142.5,17.5436]
[1723415850632,20.0,142.65,142.55,7.0149]
[1723415850832,7.0127,142.6,142.54,7.0155]
[1723415851011,7.0131,142.59,142.53,59.446]
[1723415851322,20.0,142.63,142.53,34.89]
[1723415851495,20.0,142.57,142.45,17.5488]
[1723415851699,7.0171,142.51,142.45,24.5683]
[1723415852396,0.12549,142.56,142.45,17.5488]
[1723415852618,20.50196,142.56,142.45,17.5488]
[1723415852828,7.0174,142.51,142.45,24.5687]
[1723415853038,1.75457168,142.54,142.44,34.89]
[1723415853236,7.0218,142.42,142.32,13.0235]
[1723415853404,0.12549,142.46,142.34,34.89]
[1723415853714,20.0,142.46,142.37,52.4492]
[1723415853910,20.0,142.46,142.37,34.89]
[1723415854103,20.12549,142.52,142.43,7.0209]
[1723415854436,7.0185,142.48,142.42,7.0213]
[1723415854730,20.0,142.52,142.43,34.89]
[1723415855025,7.018,142.49,142.43,41.9105]
[1723415855522,7.0176,142.5,142.44,0.12549]
[1723415855701,20.0,142.49,142.44,7.0204]
[1723415855908,7.0186,142.48,142.43,52.4413]
[1723415856110,7.0186,142.48,142.43,59.4622]
[1723415856308,20.0,142.49,142.4,34.89]
[1723415856628,7.0185,142.48,142.42,7.021]
[1723415857321,7.0185,142.48,142.43,7.0209]
[1723415857512,20.0,142.51,142.38,7.0233]
[1723415857822,0.12549,142.47,142.38,7.0233]
[1723415858128,7.021,142.43,142.38,7.0233]
[1723415858439,7.023,142.39,142.32,13.0235]
[1723415858625,0.12549,142.42,142.34,7.0254]
[1723415859120,7.0225,142.4,142.34,7.0254]
[1723415859439,7.0225,142.4,142.34,7.0253]
[1723415859605,20.0,142.43,142.36,34.89]
[1723415859806,20.0,142.46,142.4,17.5552]
[1723415860032,54.89,142.51,142.4,17.5552]
[1723415860033,7.0185,142.48,142.41,1.0437417]
[1723415860234,280.6,142.54,142.32,48.1547]
[1723415860235,17.5402,142.53,142.42,17.5528]
[1723415860530,17.5402,142.53,142.43,8.42375292]
[1723415860835,7.0186,142.48,142.42,24.5742]
[1723415861435,7.0181,142.49,142.43,7.0209]
[1723415861729,7.0187,142.48,142.42,24.5742]
[1723415861932,17.5435,142.51,142.39,52.4472]
[1723415862101,1.75513214,142.51,142.39,52.4472]
[1723415862303,17.5459,142.49,142.36,34.89]
[1723415862506,7.0199,142.46,142.4,7.0224]
[1723415862736,27.0201,142.45,142.4,7.0224]
[1723415863113,27.0201,142.45,142.39,24.5802]
[1723415863719,20.0,142.45,142.4,7.0223]
[1723415864122,7.0206,142.44,142.39,24.5801]
[1723415864517,7.0215,142.42,142.36,59.475]
[1723415864718,1.88112275,142.46,142.36,17.5607]
[1723415865033,20.0,142.46,142.38,17.5576]
[1723415865241,7.0199,142.46,142.4,7.022]
[1723415865408,27.0201,142.45,142.4,7.022]
[1723415865613,20.0,142.48,142.38,17.5576]
[1723415865834,20.0,142.48,142.4,0.12549]
[1723415866017,7.0205,142.44,142.39,52.0229]
[1723415866220,20.12549,142.49,142.39,52.0229]
[1723415866221,7.018,142.49,142.41,0.12549]
[1723415866440,7.018,142.49,142.43,7.0205]
[1723415866644,7.018,142.49,142.42,17.5528]
[1723415866816,7.018,142.49,142.43,53.42290638]
[1723415867020,7.0192,142.47,142.42,17.5528]
[1723415867238,37.5435,142.51,142.39,52.4471]
[1723415867541,37.5435,142.51,142.42,7.0211]
[1723415867542,7.0191,142.47,142.42,7.0211]
[1723415867851,7.0191,142.47,142.41,24.5756]
[1723415868152,7.0189,142.48,142.42,52.0213]
[1723415868322,7.0189,142.48,142.43,0.96871407]
[1723415868518,7.018,142.49,142.44,1.40392697]
[1723415868714,7.018,142.49,142.43,7.0207]
[1723415868944,17.539,142.54,142.46,7.0192]
[1723415869116,7.0171,142.51,142.46,7.0192]
[1723415869322,7.0166,142.52,142.47,1.40362199]
[1723415869554,17.5313,142.61,142.49,0.12549]
[1723415869858,17.5313,142.61,142.51,7.0169]
[1723415869859,7.0147,142.56,142.51,7.0169]
[1723415870029,17.5313,142.61,142.49,46.77947657]
[1723415870030,17.5313,142.61,142.52,1.40300864]
[1723415870213,7.0142,142.57,142.52,8.41950864]
[1723415870560,7.0148,142.56,142.52,1.40300864]
[1723415870722,7.0164,142.53,142.47,17.5473]
[1723415870921,17.534,142.58,142.47,17.5473]
[1723415870922,7.0165,142.52,142.48,45.0]
[1723415871146,7.0165,142.52,142.47,17.5473]
[1723415871344,17.5377,142.55,142.43,12.8779]
[1723415871521,7.0166,142.52,142.46,7.0193]
[1723415871722,7.017,142.51,142.45,7.0199]
[1723415872119,7.016,142.54,142.48,7.0184]
[1723415872356,20.0,142.53,142.49,1.40303886]
[1723415872526,20.0,142.53,142.48,7.0184]
[1723415872728,17.5335,142.59,142.49,1.40331461]
[1723415872925,34.89,142.61,142.49,1.40316691]
[1723415873144,7.0141,142.57,142.52,7.0165]